[Event "Early-Titled-Tuesday-Blitz-August-29-2023"]
[Site "Chess.com"]
[Date "2023.08.29"]
[Round "10"]
[White "joppie2"]
[Black "BillieKimbah"]
[Result "1-0"]
[WhiteElo "2969"]
[BlackElo "3034"]
[TimeControl "180+1"]
[EndTime "9:54:56 PDT"]
[Termination "joppie2 won by checkmate"]

1. e4 {[%clk 0:03:00.9]} 1... e5 {[%clk 0:03:00.1]} 2. Nf3 {[%clk 0:03:01.2]}
2... Nc6 {[%clk 0:03:00.5]} 3. Bc4 {[%clk 0:03:00.3]} 3... Nf6 {[%clk
0:03:00.3]} 4. d4 {[%clk 0:02:58.3]} 4... exd4 {[%clk 0:02:59]} 5. e5 {[%clk
0:02:58]} 5... d5 {[%clk 0:02:53]} 6. Bb5 {[%clk 0:02:58.3]} 6... Ne4 {[%clk
0:02:53.1]} 7. Nxd4 {[%clk 0:02:57]} 7... Bc5 {[%clk 0:02:53]} 8. Be3 {[%clk
0:02:51.7]} 8... O-O {[%clk 0:02:52.7]} 9. Nxc6 {[%clk 0:02:49.4]} 9... bxc6
{[%clk 0:02:52]} 10. Bxc5 {[%clk 0:02:48.1]} 10... Nxc5 {[%clk 0:02:52.9]} 11.
Bxc6 {[%clk 0:02:48.7]} 11... Rb8 {[%clk 0:02:52.4]} 12. Qxd5 {[%clk 0:02:47.7]}
12... Qe7 {[%clk 0:02:45.8]} 13. O-O {[%clk 0:02:46.9]} 13... Rxb2 {[%clk
0:02:44.8]} 14. Nc3 {[%clk 0:02:47.5]} 14... Rxc2 {[%clk 0:02:43.4]} 15. Qd4
{[%clk 0:02:27.2]} 15... Ne6 {[%clk 0:02:42.6]} 16. Qe3 {[%clk 0:02:24.1]} 16...
Qc5 {[%clk 0:02:29.9]} 17. Qxc5 {[%clk 0:02:23.5]} 17... Nxc5 {[%clk 0:02:30.8]}
18. Rfc1 {[%clk 0:02:21.7]} 18... Rxc1+ {[%clk 0:02:30.5]} 19. Rxc1 {[%clk
0:02:22.6]} 19... Nd3 {[%clk 0:02:29.9]} 20. Rb1 {[%clk 0:02:11.8]} 20... Nxe5
{[%clk 0:02:29.6]} 21. Be4 {[%clk 0:02:12.4]} 21... Be6 {[%clk 0:02:24.8]} 22.
Rb7 {[%clk 0:02:09.5]} 22... f5 {[%clk 0:02:20.4]} 23. Bc2 {[%clk 0:02:07.4]}
23... Rd8 {[%clk 0:02:12.7]} 24. f4 {[%clk 0:02:01.9]} 24... Ng4 {[%clk
0:02:01.1]} 25. Rxc7 {[%clk 0:01:36]} 25... Rd2 {[%clk 0:01:57.2]} 26. Bd1
{[%clk 0:01:36.3]} 26... Ne3 {[%clk 0:01:26.3]} 27. Bf3 {[%clk 0:01:35.8]} 27...
Rc2 {[%clk 0:01:24.1]} 28. Re7 {[%clk 0:01:23.4]} 28... Rxc3 {[%clk 0:00:50.4]}
29. Rxe6 {[%clk 0:01:23.6]} 29... a5 {[%clk 0:00:40.7]} 30. h3 {[%clk
0:01:12.4]} 30... Kf7 {[%clk 0:00:38.6]} 31. Ra6 {[%clk 0:01:06]} 31... Ra3
{[%clk 0:00:35.6]} 32. Kf2 {[%clk 0:01:06.2]} 32... Nc2 {[%clk 0:00:33]} 33.
Bd5+ {[%clk 0:01:06.2]} 33... Ke7 {[%clk 0:00:30.8]} 34. Ra7+ {[%clk 0:01:06.7]}
34... Kd6 {[%clk 0:00:30.6]} 35. Bg8 {[%clk 0:01:07.4]} 35... Nb4 {[%clk
0:00:21.7]} 36. Rxg7 {[%clk 0:01:07]} 36... Nxa2 {[%clk 0:00:20.1]} 37. Bxh7
{[%clk 0:00:52.6]} 37... Nc3 {[%clk 0:00:20.2]} 38. Bxf5 {[%clk 0:00:52.6]}
38... a4 {[%clk 0:00:20.8]} 39. Ra7 {[%clk 0:00:45.6]} 39... Nd5 {[%clk
0:00:20]} 40. g3 {[%clk 0:00:38.9]} 40... Ra2+ {[%clk 0:00:14]} 41. Kf3 {[%clk
0:00:39.4]} 41... Ra3+ {[%clk 0:00:14.6]} 42. Kg4 {[%clk 0:00:40]} 42... Ra1
{[%clk 0:00:11.5]} 43. Kg5 {[%clk 0:00:34.8]} 43... a3 {[%clk 0:00:11.5]} 44.
Bh7 {[%clk 0:00:18]} 44... a2 {[%clk 0:00:11.5]} 45. Bg8 {[%clk 0:00:18.7]}
45... Rg1 {[%clk 0:00:09.5]} 46. Bxd5 {[%clk 0:00:14.3]} 46... a1=Q {[%clk
0:00:05.4]} 47. Rxa1 {[%clk 0:00:15.2]} 47... Rxa1 {[%clk 0:00:05.7]} 48. Be4
{[%clk 0:00:08.1]} 48... Ra3 {[%clk 0:00:05.1]} 49. Kg4 {[%clk 0:00:07.2]} 49...
Ke6 {[%clk 0:00:05.7]} 50. h4 {[%clk 0:00:07.6]} 50... Kf6 {[%clk 0:00:05.6]}
51. h5 {[%clk 0:00:08.2]} 51... Ra4 {[%clk 0:00:05.2]} 52. Bd3 {[%clk
0:00:07.9]} 52... Rd4 {[%clk 0:00:05.3]} 53. Bg6 {[%clk 0:00:07.5]} 53... Rc4
{[%clk 0:00:05.2]} 54. Kf3 {[%clk 0:00:06.9]} 54... Rc3+ {[%clk 0:00:05.5]} 55.
Kf2 {[%clk 0:00:07.7]} 55... Rc4 {[%clk 0:00:04.7]} 56. Ke3 {[%clk 0:00:07.3]}
56... Rc3+ {[%clk 0:00:04.8]} 57. Bd3 {[%clk 0:00:08]} 57... Rc1 {[%clk
0:00:02.9]} 58. g4 {[%clk 0:00:08.4]} 58... Rg1 {[%clk 0:00:03.2]} 59. g5+
{[%clk 0:00:08.8]} 59... Kf7 {[%clk 0:00:03.8]} 60. h6 {[%clk 0:00:08.2]} 60...
Kg8 {[%clk 0:00:03.9]} 61. Ke4 {[%clk 0:00:08.1]} 61... Rd1 {[%clk 0:00:03.2]}
62. Bc4+ {[%clk 0:00:07.6]} 62... Kh7 {[%clk 0:00:03.8]} 63. Ke5 {[%clk
0:00:08.1]} 63... Rc1 {[%clk 0:00:03.7]} 64. Be6 {[%clk 0:00:08.1]} 64... Rc5+
{[%clk 0:00:03]} 65. Kf6 {[%clk 0:00:08.5]} 65... Rc6 {[%clk 0:00:03.6]} 66. f5
{[%clk 0:00:07.3]} 66... Ra6 {[%clk 0:00:03.9]} 67. Ke7 {[%clk 0:00:07.4]} 67...
Ra7+ {[%clk 0:00:04.1]} 68. Bd7 {[%clk 0:00:07.9]} 68... Ra6 {[%clk 0:00:04]}
69. f6 {[%clk 0:00:08]} 69... Ra1 {[%clk 0:00:02.5]} 70. f7 {[%clk 0:00:08.5]}
70... Re1+ {[%clk 0:00:02.8]} 71. Be6 {[%clk 0:00:09]} 71... Rf1 {[%clk
0:00:02]} 72. f8=Q {[%clk 0:00:09.6]} 72... Rf6 {[%clk 0:00:01.9]} 73. Qg8#
{[%clk 0:00:09.1]} 1-0

[Event "Early-Titled-Tuesday-Blitz-August-29-2023"]
[Site "Chess.com"]
[Date "2023.08.29"]
[Round "10"]
[White "WhiteKnight2612"]
[Black "Rud_Makarian"]
[Result "1-0"]
[WhiteElo "2852"]
[BlackElo "3007"]
[TimeControl "180+1"]
[EndTime "9:55:02 PDT"]
[Termination "WhiteKnight2612 won by resignation"]

1. d4 {[%clk 0:02:57.7]} 1... Nf6 {[%clk 0:03:00.2]} 2. c4 {[%clk 0:02:57.4]}
2... e6 {[%clk 0:03:00.3]} 3. Nf3 {[%clk 0:02:56.9]} 3... d5 {[%clk 0:03:00.9]}
4. Nc3 {[%clk 0:02:54.8]} 4... Be7 {[%clk 0:02:57.7]} 5. Bf4 {[%clk 0:02:54.7]}
5... O-O {[%clk 0:02:57.7]} 6. e3 {[%clk 0:02:54.9]} 6... Nbd7 {[%clk
0:02:58.4]} 7. c5 {[%clk 0:02:54.4]} 7... Ne4 {[%clk 0:02:58.5]} 8. Nxe4 {[%clk
0:02:51.9]} 8... dxe4 {[%clk 0:02:59.4]} 9. Nd2 {[%clk 0:02:52.4]} 9... e5
{[%clk 0:02:54.1]} 10. Bg3 {[%clk 0:02:45.4]} 10... exd4 {[%clk 0:02:51.5]} 11.
exd4 {[%clk 0:02:46.3]} 11... f5 {[%clk 0:02:33.7]} 12. Bc4+ {[%clk 0:02:25.2]}
12... Kh8 {[%clk 0:02:33.6]} 13. Bf4 {[%clk 0:02:21.9]} 13... g5 {[%clk
0:02:19.6]} 14. Bg3 {[%clk 0:02:21.8]} 14... f4 {[%clk 0:02:18.1]} 15. Nxe4
{[%clk 0:02:21.5]} 15... Qe8 {[%clk 0:02:09]} 16. Qe2 {[%clk 0:02:17.5]} 16...
Qg6 {[%clk 0:01:46.7]} 17. O-O-O {[%clk 0:02:15.1]} 17... Nf6 {[%clk 0:01:29]}
18. Nc3 {[%clk 0:01:25.7]} 18... Qg7 {[%clk 0:01:21]} 19. Rde1 {[%clk
0:01:15.6]} 19... Re8 {[%clk 0:01:09.4]} 20. Nb5 {[%clk 0:01:15.1]} 20... Bf8
{[%clk 0:00:57.8]} 21. Qxe8 {[%clk 0:01:09.5]} 21... Nxe8 {[%clk 0:00:58.7]} 22.
Rxe8 {[%clk 0:01:09.1]} 22... Be6 {[%clk 0:00:42.8]} 23. Rxe6 {[%clk 0:01:03.4]}
23... a6 {[%clk 0:00:43.1]} 24. Nc3 {[%clk 0:00:58.3]} 24... fxg3 {[%clk
0:00:37.2]} 25. hxg3 {[%clk 0:00:55.7]} 25... Qxd4 {[%clk 0:00:37]} 26. Bd5
{[%clk 0:00:45.8]} 26... Qxc5 {[%clk 0:00:26.1]} 27. Be4 {[%clk 0:00:43.5]}
27... h6 {[%clk 0:00:25.5]} 28. Rd1 {[%clk 0:00:43.9]} 28... Bg7 {[%clk
0:00:23.9]} 29. Rd7 {[%clk 0:00:23.3]} 29... Qxf2 {[%clk 0:00:17.5]} 30. Ree7
{[%clk 0:00:21.8]} 30... Qf6 {[%clk 0:00:14.3]} 31. Rf7 {[%clk 0:00:18]} 31...
Qe5 {[%clk 0:00:13.1]} 32. Rfe7 {[%clk 0:00:18.6]} 32... Qf6 {[%clk 0:00:10.5]}
33. Rxg7 {[%clk 0:00:15.1]} 33... Qxg7 {[%clk 0:00:10.6]} 34. Rxg7 {[%clk
0:00:16]} 34... Kxg7 {[%clk 0:00:11.5]} 35. Bxb7 {[%clk 0:00:16.6]} 35... Ra7
{[%clk 0:00:11.3]} 36. Bf3 {[%clk 0:00:17.3]} 36... Kf6 {[%clk 0:00:10.4]} 37.
g4 {[%clk 0:00:17]} 37... Ke5 {[%clk 0:00:10.6]} 38. Kd2 {[%clk 0:00:15.8]}
38... c5 {[%clk 0:00:10.8]} 39. Ne4 {[%clk 0:00:15.6]} 39... Kd4 {[%clk
0:00:10.1]} 40. Ng3 {[%clk 0:00:15.3]} 40... Rd7 {[%clk 0:00:09.2]} 41. b3
{[%clk 0:00:14.7]} 41... Rd8 {[%clk 0:00:07.1]} 42. Nf5+ {[%clk 0:00:14.9]}
42... Ke5+ {[%clk 0:00:07.7]} 43. Kc3 {[%clk 0:00:14.7]} 43... h5 {[%clk
0:00:08.2]} 44. Nh6 {[%clk 0:00:12.8]} 44... Rf8 {[%clk 0:00:04.2]} 45. gxh5
{[%clk 0:00:12.5]} 45... Kf4 {[%clk 0:00:04.1]} 46. Ng4 {[%clk 0:00:13.1]} 46...
Rh8 {[%clk 0:00:03.3]} 47. h6 {[%clk 0:00:13.5]} 47... Kg3 {[%clk 0:00:04]} 48.
Kc4 {[%clk 0:00:14]} 48... Kf4 {[%clk 0:00:03.9]} 49. Kxc5 {[%clk 0:00:14.5]}
49... Kf5 {[%clk 0:00:04.4]} 50. Kb6 {[%clk 0:00:15]} 50... Kg6 {[%clk
0:00:05.3]} 51. Kxa6 {[%clk 0:00:15.5]} 51... Kh5 {[%clk 0:00:05.9]} 52. b4
{[%clk 0:00:15.9]} 52... Kh4 {[%clk 0:00:06.3]} 53. b5 {[%clk 0:00:15.9]} 53...
Kg3 {[%clk 0:00:06.4]} 54. b6 {[%clk 0:00:16.5]} 54... Kh4 {[%clk 0:00:06.9]}
55. b7 {[%clk 0:00:17]} 55... Kg3 {[%clk 0:00:04]} 56. Ka7 {[%clk 0:00:17.6]}
56... Kh4 {[%clk 0:00:04.9]} 57. a4 {[%clk 0:00:15.8]} 57... Rh7 {[%clk
0:00:05.8]} 58. a5 {[%clk 0:00:15.4]} 58... Re7 {[%clk 0:00:05.1]} 59. Nf6
{[%clk 0:00:14.2]} 59... g4 {[%clk 0:00:02.4]} 60. Nxg4 {[%clk 0:00:14.4]} 60...
Kg5 {[%clk 0:00:02.5]} 61. Ka8 {[%clk 0:00:14.5]} 61... Kg6 {[%clk 0:00:02.6]}
62. b8=Q {[%clk 0:00:14.6]} 62... Kh7 {[%clk 0:00:03.1]} 63. Qb1+ {[%clk
0:00:13.6]} 63... Kh8 {[%clk 0:00:03.3]} 64. Qb2+ {[%clk 0:00:14]} 64... Kh7
{[%clk 0:00:03.7]} 65. Qc2+ {[%clk 0:00:14.6]} 65... Kh8 {[%clk 0:00:03.7]} 66.
Qc3+ {[%clk 0:00:15.3]} 66... Kh7 {[%clk 0:00:03.7]} 67. Qd3+ {[%clk 0:00:16.1]}
67... Kg8 {[%clk 0:00:03]} 68. Qd8+ {[%clk 0:00:15.4]} 68... Kf7 {[%clk
0:00:03.5]} 69. Bd5+ {[%clk 0:00:15.4]} 69... Kg6 {[%clk 0:00:03.4]} 70. Qxe7
{[%clk 0:00:15.6]} 70... Kf5 {[%clk 0:00:03.8]} 71. Qf6+ {[%clk 0:00:15.3]}
71... Kxg4 {[%clk 0:00:03.8]} 72. h7 {[%clk 0:00:15.7]} 72... Kg3 {[%clk
0:00:04.7]} 73. Qf3+ {[%clk 0:00:14.8]} 73... Kh4 {[%clk 0:00:04.9]} 74. h8=Q+
{[%clk 0:00:15.2]} 74... Kg5 {[%clk 0:00:05.8]} 1-0

[Event "Early-Titled-Tuesday-Blitz-August-29-2023"]
[Site "Chess.com"]
[Date "2023.08.29"]
[Round "10"]
[White "Iskusnyh"]
[Black "pedromartinez91"]
[Result "0-1"]
[WhiteElo "2606"]
[BlackElo "2464"]
[TimeControl "180+1"]
[EndTime "9:55:10 PDT"]
[Termination "pedromartinez91 won on time"]

1. d4 {[%clk 0:02:59.5]} 1... Nf6 {[%clk 0:02:54.8]} 2. c4 {[%clk 0:02:58.3]}
2... e5 {[%clk 0:02:52.9]} 3. dxe5 {[%clk 0:02:56.1]} 3... Ng4 {[%clk
0:02:52.3]} 4. e3 {[%clk 0:02:28.7]} 4... Nxe5 {[%clk 0:02:48.5]} 5. f4 {[%clk
0:02:26.8]} 5... Ng6 {[%clk 0:02:43.3]} 6. Nc3 {[%clk 0:02:23.3]} 6... Bc5
{[%clk 0:02:41.2]} 7. Bd3 {[%clk 0:02:16.7]} 7... O-O {[%clk 0:02:38.1]} 8. Bd2
{[%clk 0:02:09.3]} 8... Re8 {[%clk 0:02:34.5]} 9. Qf3 {[%clk 0:01:53]} 9... Nh4
{[%clk 0:02:18]} 10. Qh5 {[%clk 0:01:38]} 10... Nxg2+ {[%clk 0:01:58.6]} 11. Kd1
{[%clk 0:01:15.2]} 11... g6 {[%clk 0:01:47.3]} 12. Qxc5 {[%clk 0:01:12.9]} 12...
d6 {[%clk 0:01:47.9]} 13. Qd5 {[%clk 0:00:57.2]} 13... Nxe3+ {[%clk 0:01:33.9]}
14. Bxe3 {[%clk 0:00:55.3]} 14... Rxe3 {[%clk 0:01:34.8]} 15. Qd4 {[%clk
0:00:53.1]} 15... Re6 {[%clk 0:01:05.9]} 16. f5 {[%clk 0:00:51.5]} 16... Nc6
{[%clk 0:01:04.8]} 17. Qf2 {[%clk 0:00:51.2]} 17... Re5 {[%clk 0:00:44.6]} 18.
Nf3 {[%clk 0:00:50.7]} 18... Rxf5 {[%clk 0:00:34.2]} 19. Bxf5 {[%clk 0:00:50]}
19... Bxf5 {[%clk 0:00:35.1]} 20. Nd4 {[%clk 0:00:48.6]} 20... Bg4+ {[%clk
0:00:33.3]} 21. Kc1 {[%clk 0:00:46.2]} 21... Ne5 {[%clk 0:00:32.2]} 22. Qg3
{[%clk 0:00:39.7]} 22... Qg5+ {[%clk 0:00:21.5]} 23. Kc2 {[%clk 0:00:39]} 23...
Bf5+ {[%clk 0:00:21.6]} 24. Nxf5 {[%clk 0:00:35.7]} 24... Qxf5+ {[%clk
0:00:21.6]} 25. Kb3 {[%clk 0:00:35.6]} 25... b5 {[%clk 0:00:20.7]} 26. cxb5
{[%clk 0:00:32.6]} 26... a5 {[%clk 0:00:15]} 27. a4 {[%clk 0:00:31.8]} 27...
Qe6+ {[%clk 0:00:14]} 28. Kc2 {[%clk 0:00:31.2]} 28... Qf5+ {[%clk 0:00:14.5]}
29. Kd2 {[%clk 0:00:24.1]} 29... Nc4+ {[%clk 0:00:13.6]} 30. Kc1 {[%clk
0:00:23.8]} 30... Re8 {[%clk 0:00:13.1]} 31. Rd1 {[%clk 0:00:21]} 31... Ne3
{[%clk 0:00:10.8]} 32. Rd2 {[%clk 0:00:16.6]} 32... Qf1+ {[%clk 0:00:10.7]} 33.
Nd1 {[%clk 0:00:15.8]} 33... Qc4+ {[%clk 0:00:10.1]} 34. Kb1 {[%clk 0:00:15.5]}
34... Qe4+ {[%clk 0:00:10.4]} 35. Kc1 {[%clk 0:00:14.5]} 35... Qc4+ {[%clk
0:00:10.6]} 36. Nc3 {[%clk 0:00:14.7]} 36... Nf1 {[%clk 0:00:07.4]} 37. Qd3
{[%clk 0:00:12.1]} 37... Re1+ {[%clk 0:00:05.7]} 38. Kc2 {[%clk 0:00:11.4]}
38... Ne3+ {[%clk 0:00:06.1]} 39. Qxe3 {[%clk 0:00:10.5]} 39... Rxe3 {[%clk
0:00:07]} 40. Rad1 {[%clk 0:00:10.1]} 40... Rxc3+ {[%clk 0:00:05.4]} 41. bxc3
{[%clk 0:00:09.9]} 41... Qxa4+ {[%clk 0:00:06.3]} 42. Kd3 {[%clk 0:00:10.5]}
42... Qxb5+ {[%clk 0:00:06.8]} 43. Kd4 {[%clk 0:00:10.4]} 43... Qc5+ {[%clk
0:00:07.3]} 44. Kd3 {[%clk 0:00:10.3]} 44... d5 {[%clk 0:00:08]} 45. Rb2 {[%clk
0:00:09]} 45... Qc4+ {[%clk 0:00:08.1]} 46. Kc2 {[%clk 0:00:09]} 46... Qa4+
{[%clk 0:00:07.4]} 47. Kc1 {[%clk 0:00:08.5]} 47... Qa3 {[%clk 0:00:07]} 48. Kc2
{[%clk 0:00:08.3]} 48... c6 {[%clk 0:00:07.6]} 49. Rb7 {[%clk 0:00:07.7]} 49...
Kg7 {[%clk 0:00:07.7]} 50. Rf1 {[%clk 0:00:06.6]} 50... Qa4+ {[%clk 0:00:08.2]}
51. Kb2 {[%clk 0:00:06.4]} 51... Kh6 {[%clk 0:00:03.9]} 52. Rfxf7 {[%clk
0:00:06.5]} 52... Kg5 {[%clk 0:00:04]} 53. Rxh7 {[%clk 0:00:06.3]} 53... Qe4
{[%clk 0:00:03.2]} 54. h4+ {[%clk 0:00:06]} 54... Kg4 {[%clk 0:00:03.1]} 55.
Rbg7 {[%clk 0:00:05.2]} 55... Qe2+ {[%clk 0:00:03.2]} 56. Kb3 {[%clk 0:00:05.1]}
56... Qc4+ {[%clk 0:00:03.5]} 57. Kb2 {[%clk 0:00:05.4]} 57... a4 {[%clk
0:00:03.7]} 58. h5 {[%clk 0:00:05.4]} 58... Qb3+ {[%clk 0:00:03.8]} 59. Kc1
{[%clk 0:00:05.6]} 59... Qxc3+ {[%clk 0:00:04.3]} 60. Kd1 {[%clk 0:00:06.1]}
60... Qd3+ {[%clk 0:00:04.8]} 61. Ke1 {[%clk 0:00:06.4]} 61... Kf3 {[%clk
0:00:05.3]} 62. Rf7+ {[%clk 0:00:05.9]} 62... Kg3 {[%clk 0:00:05.8]} 63. Rhg7
{[%clk 0:00:05.6]} 63... Qc3+ {[%clk 0:00:05.5]} 64. Kf1 {[%clk 0:00:04.8]}
64... Qc1+ {[%clk 0:00:04.5]} 65. Ke2 {[%clk 0:00:05]} 65... Qc2+ {[%clk
0:00:05.1]} 66. Ke1 {[%clk 0:00:05.1]} 66... Qc1+ {[%clk 0:00:05.4]} 67. Ke2
{[%clk 0:00:05.5]} 67... Qc2+ {[%clk 0:00:05.4]} 68. Ke1 {[%clk 0:00:05.7]}
68... d4 {[%clk 0:00:06]} 69. Rxg6+ {[%clk 0:00:05.5]} 69... Kh4 {[%clk
0:00:06.2]} 70. h6 {[%clk 0:00:05.2]} 70... Qxg6 {[%clk 0:00:05.4]} 71. h7
{[%clk 0:00:04.7]} 71... Qxf7 {[%clk 0:00:04.3]} 72. h8=Q+ {[%clk 0:00:04.7]}
72... Kg5 {[%clk 0:00:05.2]} 73. Qxd4 {[%clk 0:00:04.4]} 73... Qe6+ {[%clk
0:00:05.5]} 74. Kf2 {[%clk 0:00:04.2]} 74... Qf6+ {[%clk 0:00:05.8]} 75. Ke3
{[%clk 0:00:03.8]} 75... Qxd4+ {[%clk 0:00:05.5]} 76. Kxd4 {[%clk 0:00:04.7]}
76... c5+ {[%clk 0:00:05.5]} 77. Kc4 {[%clk 0:00:04.9]} 77... Kf5 {[%clk
0:00:05.7]} 0-1

[Event "Early-Titled-Tuesday-Blitz-August-29-2023"]
[Site "Chess.com"]
[Date "2023.08.29"]
[Round "10"]
[White "Andreikka"]
[Black "tptagain"]
[Result "1-0"]
[WhiteElo "3037"]
[BlackElo "2889"]
[TimeControl "180+1"]
[EndTime "9:55:14 PDT"]
[Termination "Andreikka won by resignation"]

1. Nf3 {[%clk 0:03:00]} 1... d5 {[%clk 0:02:59.5]} 2. g3 {[%clk 0:03:00.5]} 2...
c6 {[%clk 0:02:59.5]} 3. Bg2 {[%clk 0:03:00.5]} 3... Bg4 {[%clk 0:02:59.2]} 4.
O-O {[%clk 0:03:00.4]} 4... e6 {[%clk 0:02:59.6]} 5. h3 {[%clk 0:02:59.3]} 5...
Bh5 {[%clk 0:02:59.4]} 6. d3 {[%clk 0:02:57.4]} 6... Bd6 {[%clk 0:02:58.1]} 7.
Nbd2 {[%clk 0:02:58.1]} 7... Ne7 {[%clk 0:02:57.7]} 8. Qe1 {[%clk 0:02:58.5]}
8... a5 {[%clk 0:02:55.7]} 9. e4 {[%clk 0:02:56.7]} 9... a4 {[%clk 0:02:55.4]}
10. a3 {[%clk 0:02:52.9]} 10... O-O {[%clk 0:02:52.1]} 11. Nh4 {[%clk
0:02:53.1]} 11... e5 {[%clk 0:02:45.3]} 12. Ndf3 {[%clk 0:02:46.3]} 12... f6
{[%clk 0:02:43.7]} 13. Nh2 {[%clk 0:02:24.3]} 13... Nd7 {[%clk 0:02:35.6]} 14.
f4 {[%clk 0:02:22.8]} 14... dxe4 {[%clk 0:02:17]} 15. dxe4 {[%clk 0:02:22.2]}
15... exf4 {[%clk 0:02:03]} 16. gxf4 {[%clk 0:02:21.5]} 16... Qc7 {[%clk
0:01:59.6]} 17. Ng4 {[%clk 0:01:58.1]} 17... Rae8 {[%clk 0:01:44.3]} 18. Qg3
{[%clk 0:01:56]} 18... Kh8 {[%clk 0:01:31.9]} 19. Qf2 {[%clk 0:01:34.1]} 19...
Bc5 {[%clk 0:01:21.1]} 20. Be3 {[%clk 0:01:33.5]} 20... Bxe3 {[%clk 0:01:21.4]}
21. Nxe3 {[%clk 0:01:34.1]} 21... Nc5 {[%clk 0:01:13.7]} 22. Rae1 {[%clk
0:01:31.4]} 22... Ng6 {[%clk 0:01:11.1]} 23. Nef5 {[%clk 0:01:21.6]} 23... Ne6
{[%clk 0:01:06.5]} 24. Nxg6+ {[%clk 0:01:19.2]} 24... Bxg6 {[%clk 0:01:03.6]}
25. Ng3 {[%clk 0:01:19]} 25... Bf7 {[%clk 0:01:00.9]} 26. h4 {[%clk 0:01:18]}
26... b6 {[%clk 0:00:58.3]} 27. Kh1 {[%clk 0:01:13.6]} 27... Rd8 {[%clk
0:00:50.9]} 28. Re2 {[%clk 0:01:00.4]} 28... Rfe8 {[%clk 0:00:33]} 29. h5 {[%clk
0:00:59.2]} 29... Nc5 {[%clk 0:00:28.6]} 30. Re3 {[%clk 0:00:52.9]} 30... Be6
{[%clk 0:00:25.5]} 31. h6 {[%clk 0:00:39.8]} 31... gxh6 {[%clk 0:00:25.9]} 32.
Nh5 {[%clk 0:00:39.9]} 32... Qf7 {[%clk 0:00:25.1]} 33. Qh4 {[%clk 0:00:40]}
33... Rf8 {[%clk 0:00:21.8]} 34. Rg3 {[%clk 0:00:30.3]} 34... Bc4 {[%clk
0:00:16.5]} 35. Rg1 {[%clk 0:00:28.8]} 35... Rg8 {[%clk 0:00:12.7]} 36. Rxg8+
{[%clk 0:00:23]} 36... Rxg8 {[%clk 0:00:13.6]} 37. Nxf6 {[%clk 0:00:22.1]} 37...
Rf8 {[%clk 0:00:11.7]} 38. e5 {[%clk 0:00:21.5]} 38... Nd7 {[%clk 0:00:08.2]}
39. Nxd7 {[%clk 0:00:14.7]} 39... Qxd7 {[%clk 0:00:09.1]} 40. Qxh6 {[%clk
0:00:14.2]} 40... Qf7 {[%clk 0:00:05]} 41. Bxc6 {[%clk 0:00:04.9]} 41... Bd5+
{[%clk 0:00:05.2]} 42. Bxd5 {[%clk 0:00:04.7]} 42... Qxd5+ {[%clk 0:00:06.1]}
43. Rg2 {[%clk 0:00:05]} 43... Qf7 {[%clk 0:00:01.7]} 44. e6 {[%clk 0:00:04.6]}
44... Qe7 {[%clk 0:00:02]} 45. Re2 {[%clk 0:00:02.9]} 45... Rf6 {[%clk
0:00:01.4]} 46. Qg5 {[%clk 0:00:03.1]} 46... h6 {[%clk 0:00:01.6]} 47. Qh4
{[%clk 0:00:02.6]} 47... Kh7 {[%clk 0:00:01.8]} 48. Kh2 {[%clk 0:00:02.8]} 48...
Kg7 {[%clk 0:00:01.4]} 49. Qg4+ {[%clk 0:00:02.7]} 49... Kf8 {[%clk 0:00:01.9]}
50. f5 {[%clk 0:00:02.6]} 50... h5 {[%clk 0:00:01.7]} 51. Qg5 {[%clk 0:00:02.4]}
51... Ke8 {[%clk 0:00:01.4]} 52. Qg8+ {[%clk 0:00:02.4]} 52... Rf8 {[%clk
0:00:01.8]} 53. Qg6+ {[%clk 0:00:02.8]} 53... Kd8 {[%clk 0:00:02.5]} 54. Rd2+
{[%clk 0:00:03.5]} 54... Kc8 {[%clk 0:00:03.2]} 55. Kh3 {[%clk 0:00:03.3]} 55...
Qc7 {[%clk 0:00:02.7]} 56. f6 {[%clk 0:00:02.9]} 56... Qe5 {[%clk 0:00:02.6]}
57. e7 {[%clk 0:00:03]} 57... Qe3+ {[%clk 0:00:02.9]} 58. Qg3 {[%clk 0:00:03.6]}
58... Qe6+ {[%clk 0:00:03]} 59. Kh2 {[%clk 0:00:03.2]} 59... Re8 {[%clk
0:00:03.1]} 60. Qf4 {[%clk 0:00:03.1]} 60... Kb7 {[%clk 0:00:02.7]} 61. Qf3+
{[%clk 0:00:03.6]} 61... Ka7 {[%clk 0:00:02.1]} 62. Re2 {[%clk 0:00:04.3]} 62...
Qd6+ {[%clk 0:00:02.1]} 63. Kh3 {[%clk 0:00:04.6]} 63... Qd7+ {[%clk 0:00:02.8]}
64. Kh4 {[%clk 0:00:04.8]} 64... Qd4+ {[%clk 0:00:03.3]} 65. Kh3 {[%clk
0:00:04.4]} 65... Qd7+ {[%clk 0:00:03.5]} 66. Kh4 {[%clk 0:00:04.5]} 66... Qd4+
{[%clk 0:00:03.8]} 67. Kg5 {[%clk 0:00:04.8]} 67... Rg8+ {[%clk 0:00:03.8]} 68.
Kh6 {[%clk 0:00:05]} 68... Qd6 {[%clk 0:00:02.1]} 69. e8=Q {[%clk 0:00:03.8]}
69... Rxe8 {[%clk 0:00:02.4]} 70. Rxe8 {[%clk 0:00:03.9]} 70... h4 {[%clk
0:00:02.5]} 71. Re7+ {[%clk 0:00:03.5]} 71... Ka6 {[%clk 0:00:03.1]} 72. Qe2+
{[%clk 0:00:04]} 72... b5 {[%clk 0:00:02.9]} 73. Qe6 {[%clk 0:00:04.1]} 1-0